bitfinex-derivatives/quotes_SOLF0:USTF0_20241208
["timestamp","ask_amount","ask_price","bid_price","bid_amount"]
[1733632661389,6.40073707,239.1,239.08,2.0897]
[1733632661587,1.88,239.09,239.08,2.0897]
[1733632663991,8.28073707,239.1,239.09,2.0896]
[1733632665483,2.0884,239.24,239.11,2.0894]
[1733632665687,6.40073707,239.14,239.06,6.40073707]
[1733632665883,8.28073707,239.14,239.06,6.40073707]
[1733632666084,8.28073707,239.14,239.12,2.0894]
[1733632667893,6.40073707,239.17,239.1,6.40073707]
[1733632668895,6.40073707,239.17,239.15,2.089]
[1733632669399,6.40073707,239.17,239.1,6.40073707]
[1733632670900,6.40073707,239.15,239.14,2.0891]
[1733632671100,6.40073707,239.15,239.08,6.40073707]
[1733632671597,6.40073707,239.15,239.12,2.0893]
[1733632672395,6.40073707,239.13,239.12,2.0893]
[1733632672992,6.40073707,239.13,239.11,2.0895]
[1733632673697,6.40073707,239.13,239.07,3.9363]
[1733632673698,6.40073707,239.13,239.12,2.0894]
[1733632674199,8.28073707,239.13,238.9,0.25939438]
[1733632674390,8.28073707,239.13,238.94,6.40073707]
[1733632674391,6.40073707,239.02,238.94,6.40073707]
[1733632674596,8.28073707,239.02,238.94,6.40073707]
[1733632674894,6.40073707,239.05,238.97,6.40073707]
[1733632675094,1.88,239.04,238.97,6.40073707]
[1733632675296,6.40073707,239.03,238.95,6.40073707]
[1733632675499,1.88,239.04,238.95,6.40073707]
[1733632675700,8.28073707,239.04,238.95,6.40073707]
[1733632676001,1.88,239.03,238.97,6.40073707]
[1733632676299,2.5252,239.22,238.99,6.40073707]
[1733632676502,2.5252,239.22,239.01,6.40073707]
[1733632676800,6.40073707,239.09,239.04,2.0901]
[1733632677101,6.40073707,239.07,239.04,2.0901]
[1733632677595,6.40073707,239.07,239.03,2.0902]
[1733632680999,8.28073707,239.08,239.03,2.0902]
[1733632681896,1.88,239.07,239.03,2.0902]
[1733632682304,1.96,239.13,239.08,2.0897]
[1733632682699,6.40073707,239.12,239.08,2.0897]
[1733632683104,6.40073707,239.12,239.05,6.40073707]
[1733632683404,6.40073707,239.1,239.07,2.0898]
[1733632683599,6.40073707,239.1,239.0,1.96]
[1733632683802,8.49033707,239.1,239.02,6.40073707]
[1733632684006,6.40073707,239.08,239.0,1.96]
[1733632684309,6.40073707,239.08,239.01,6.40073707]
[1733632684810,6.40073707,239.11,239.03,6.40073707]
[1733632685302,8.49023707,239.11,239.07,2.0898]
[1733632685609,8.36073707,239.13,239.05,6.40073707]
[1733632686301,2.5252,239.22,239.07,6.40073707]
[1733632686302,1.96,239.17,239.07,6.40073707]
[1733632686506,6.40073707,239.16,239.07,6.40073707]
[1733632686703,1.96,239.18,239.09,6.40073707]
[1733632686904,6.40073707,239.16,239.09,6.40073707]
[1733632687305,6.40073707,239.16,239.12,2.0894]
[1733632687511,6.40073707,239.16,239.07,3.9414]
[1733632687708,8.48983707,239.16,239.11,2.0895]
[1733632688105,8.48983707,239.16,239.08,6.40073707]
[1733632688405,8.48983707,239.16,239.09,2.09099222]
[1733632688605,8.48983707,239.16,239.08,6.40073707]
[1733632688807,2.089,239.17,239.12,2.0893]
[1733632689014,6.40073707,239.17,239.1,6.40073707]
[1733632689308,6.40073707,239.17,239.11,1.04544885]
[1733632689511,1.96,239.18,239.12,2.0893]
[1733632689813,6.40073707,239.17,239.1,6.40073707]
[1733632690011,8.48973707,239.17,239.12,2.0894]
[1733632690202,6.40073707,239.15,239.07,3.9414]
[1733632690408,6.40073707,239.15,239.09,6.40073707]
[1733632690608,6.40073707,239.15,239.1,2.0895]
[1733632690910,2.0891,239.16,239.1,2.0895]
[1733632691112,6.40073707,239.16,239.09,6.40073707]
[1733632691504,6.40073707,239.16,239.12,2.0893]
[1733632693706,2.0888,239.2,239.13,6.40073707]
[1733632693910,6.40073707,239.21,239.15,6.40073707]
[1733632694313,2.7392,239.29,239.15,6.40073707]
[1733632694512,6.40073707,239.24,239.17,6.40073707]
[1733632695314,8.48913707,239.24,239.19,2.0887]
[1733632695910,6.40073707,239.2,239.16,2.089]
[1733632696317,6.40073707,239.2,239.11,1.96]
[1733632696519,8.48943707,239.2,239.15,2.089]
[1733632697020,1.96,239.23,239.14,6.40073707]
[1733632697021,6.40073707,239.22,239.14,6.40073707]
[1733632697316,6.40073707,239.22,239.19,2.0888]
[1733632698719,6.40073707,239.2,239.14,6.40073707]
[1733632698917,6.40073707,239.2,239.17,2.0889]
[1733632700010,6.40073707,239.2,239.15,2.0891]
[1733632700218,6.40073707,239.2,239.12,1.96]
[1733632700420,6.40073707,239.2,239.12,8.36073707]
[1733632700819,6.40073707,239.2,239.16,2.0889]
[1733632701615,6.40073707,239.2,239.17,2.0889]
[1733632702420,6.40073707,239.2,239.15,2.089]
[1733632702722,1.96,239.25,239.12,6.40073707]
[1733632702926,6.40073707,239.19,239.12,6.40073707]
[1733632703922,6.40073707,239.19,239.16,2.089]
[1733632705617,2.0887,239.2,239.07,3.9414]
[1733632705618,6.40073707,239.17,239.07,3.9414]
[1733632705830,1.96,239.2,239.07,10.34213707]
[1733632705831,6.40073707,239.13,239.07,10.34213707]
[1733632706329,6.40073707,239.13,239.1,2.0895]
[1733632706524,6.40073707,239.13,239.07,10.34213707]
[1733632706920,6.40073707,239.11,239.07,3.9414]
[1733632707226,6.40073707,239.14,239.07,10.34213707]
[1733632707424,6.40073707,239.14,238.95,0.2607729]
[1733632707725,6.40073707,239.1,239.03,6.40073707]
[1733632708127,6.40073707,239.1,239.07,2.0898]
[1733632713126,6.40073707,239.1,239.02,1.92]
[1733632713127,6.40073707,239.08,239.02,1.92]
[1733632716530,6.40073707,239.08,239.05,2.0899]
[1733632716928,6.40073707,239.08,239.02,1.92]
[1733632716929,2.0896,239.1,239.03,6.40073707]
[1733632717234,8.49033707,239.1,239.03,6.40073707]
[1733632717934,8.49033707,239.1,239.0,1.92]
[1733632718125,8.49033707,239.1,239.02,6.40073707]
[1733632719133,6.40073707,239.08,239.02,6.40073707]
[1733632719535,6.40073707,239.08,239.05,2.0899]
[1733632720035,6.40073707,239.08,239.06,2.0899]
[1733632721738,6.40073707,239.08,239.02,6.40073707]
[1733632721939,6.40073707,239.07,238.98,1.92]
[1733632722127,15.2492,239.29,239.02,6.40073707]
[1733632722333,4.00960213,239.28,239.06,6.40073707]
[1733632722533,6.40073707,239.13,239.06,6.40073707]
[1733632724538,2.0888,239.19,239.08,6.40073707]
[1733632724735,6.40073707,239.15,239.08,6.40073707]
[1733632725033,1.92,239.18,239.04,4.0227]
[1733632725034,6.40073707,239.16,239.14,2.0892]
[1733632726039,2.08968947,239.27,239.1,6.40073707]
[1733632726234,6.40073707,239.18,239.17,2.0889]
[1733632727333,6.40073707,239.18,239.16,2.089]
[1733632728440,6.40073707,239.18,239.14,2.0891]
[1733632729236,6.40073707,239.18,239.1,6.40073707]
[1733632729438,6.40073707,239.16,239.11,2.0894]
[1733632730237,6.40073707,239.14,239.1,2.0895]
[1733632730743,6.40073707,239.14,239.09,2.0896]
[1733632730945,6.40073707,239.14,239.08,6.40073707]
[1733632731339,6.40073707,239.14,239.07,1.92]
[1733632731645,6.40073707,239.14,239.09,2.0896]
[1733632731835,6.40073707,239.14,239.07,1.92]
[1733632732235,6.40073707,239.12,239.07,1.92]
[1733632732438,6.40073707,239.1,239.04,4.0227]
[1733632733246,6.40073707,239.1,239.04,6.1128]
[1733632733646,6.40073707,239.1,239.04,3.451]
[1733632733948,6.40073707,239.08,239.04,2.0901]
[1733632734543,6.40073707,239.08,239.02,2.0902]
[1733632734943,6.40073707,239.08,239.01,8.32073707]
[1733632735141,2.0896,239.1,239.03,2.0902]
[1733632735342,6.40073707,239.08,239.03,2.0902]
[1733632736048,6.40073707,239.09,239.04,2.0901]
[1733632738145,6.40073707,239.09,239.05,2.09]
[1733632739948,6.40073707,239.09,239.06,2.0899]
[1733632740149,6.40073707,239.09,239.01,6.40073707]
[1733632740349,2.0896,239.11,239.01,6.40073707]
[1733632740551,6.40073707,239.08,239.01,6.40073707]
[1733632741546,1.92,239.12,239.06,2.0899]
[1733632741547,4.0094,239.12,239.06,2.0899]
[1733632741748,4.0094,239.12,239.0,53.24543075]
[1733632741749,2.6413,239.19,239.07,6.40073707]
[1733632742050,6.40073707,239.12,239.05,6.40073707]
[1733632742251,1.92,239.18,239.05,6.40073707]
[1733632742455,6.40073707,239.12,239.05,6.40073707]
[1733632742649,6.40073707,239.1,239.07,2.0898]
[1733632744151,6.40073707,239.12,239.08,2.0897]
[1733632744353,4.1758,239.3,239.07,6.40073707]
[1733632744553,6.40073707,239.15,239.07,6.40073707]
[1733632745054,6.40073707,239.15,239.08,2.0910553]
[1733632745244,6.40073707,239.15,239.07,6.40073707]
[1733632745445,6.40073707,239.15,239.08,2.09104123]
[1733632745656,6.40073707,239.17,239.09,8.4917783]
[1733632745950,6.40073707,239.17,239.14,2.0892]
[1733632746352,1.92,239.19,239.11,6.40073707]
[1733632746549,1.92,239.23,239.12,2.09080358]
[1733632746752,1.92,239.23,239.11,6.40073707]
[1733632746753,6.40073707,239.19,239.11,6.40073707]
[1733632747056,6.40073707,239.19,239.15,2.089]
[1733632747356,6.40073707,239.19,239.11,6.40073707]
[1733632747557,6.40073707,239.19,239.12,2.09079698]
[1733632747857,2.0886,239.21,239.11,6.40073707]
[1733632748155,6.40073707,239.19,239.12,2.09078446]
[1733632748352,6.40073707,239.19,239.11,6.40073707]
[1733632748547,6.40073707,239.19,239.12,2.09078446]
[1733632748752,6.40073707,239.19,239.11,6.40073707]
[1733632748948,6.40073707,239.19,239.12,2.09079166]
[1733632749153,6.40073707,239.19,239.11,6.40073707]
[1733632749355,6.40073707,239.19,239.14,2.0892]
[1733632749856,6.40073707,239.19,239.09,1.92]
[1733632749857,6.40073707,239.2,239.16,2.089]
[1733632750163,6.40073707,239.2,239.13,6.40073707]
[1733632751654,6.40073707,239.2,239.15,2.0891]
[1733632751956,6.40073707,239.21,239.15,2.0891]
[1733632752258,6.40073707,239.21,239.13,6.40073707]
[1733632752259,8.48953707,239.19,239.13,8.48993707]
[1733632752461,6.40073707,239.19,239.11,6.40073707]
[1733632753358,6.40073707,239.17,239.09,8.32073707]
[1733632754154,2.0891,239.16,239.09,8.49033707]
[1733632754354,2.0891,239.16,239.09,10.41033707]
[1733632754857,8.49003707,239.13,239.07,2.0898]
[1733632755058,6.40073707,239.11,239.04,6.40073707]
[1733632755361,6.40073707,239.11,239.05,1.92]
[1733632755758,6.40073707,239.09,239.03,4.7556]
[1733632755955,6.40073707,239.09,239.03,6.6756]
[1733632757161,6.40073707,239.07,239.03,4.5855]
[1733632758663,6.40073707,239.07,239.02,1.2576]
[1733632758867,2.0899,239.06,239.0,63.65656782]
[1733632759068,2.0899,239.06,239.01,2.0916979]
[1733632759267,2.0899,239.06,239.0,61.56616782]
[1733632759471,2.0899,239.06,239.01,2.0903]
[1733632759769,6.40073707,239.07,239.01,2.0903]
[1733632759972,8.49053707,239.07,239.01,2.0903]
[1733632760172,8.49053707,239.07,239.0,61.56616782]
[1733632760962,2.0899,239.06,239.0,55.16543075]
[1733632762468,2.0901,239.04,238.98,8.32073707]
[1733632762667,2.0901,239.04,238.99,1.04590768]
[1733632762969,2.0901,239.04,238.98,8.32073707]
[1733632763573,8.49073707,239.05,238.98,8.32073707]
[1733632764664,6.40073707,239.05,238.98,8.32073707]
[1733632765677,6.40073707,239.05,238.99,1.04592383]
[1733632765869,6.40073707,239.05,238.98,10.41133707]
[1733632766070,6.40073707,239.05,238.98,8.32073707]
[1733632766275,6.40073707,239.05,238.99,1.04592522]
[1733632766477,6.40073707,239.05,238.98,8.32073707]
[1733632766777,6.40073707,239.05,238.99,2.09184671]
[1733632766975,6.40073707,239.05,238.98,8.32073707]
[1733632768479,2.0896,239.08,238.98,10.41113707]
[1733632768779,6.40073707,239.06,238.99,2.09179024]
[1733632768978,6.40073707,239.06,238.98,10.41113707]
[1733632769181,6.40073707,239.06,238.99,2.09175096]
[1733632769375,6.40073707,239.06,238.98,10.41113707]
[1733632769680,8.49043707,239.06,238.99,2.09175096]
[1733632769880,8.49043707,239.06,238.98,10.41113707]
[1733632771780,8.49043707,239.06,238.99,2.0903]
[1733632773384,2.0897,239.06,238.99,2.0903]
[1733632773577,2.0897,239.06,239.0,8.49093707]
[1733632774476,8.49043707,239.06,239.0,8.49093707]
[1733632777185,2.0897,239.06,239.0,8.49093707]
[1733632777485,1.9,239.11,239.02,6.40073707]
[1733632777676,6.40073707,239.1,239.02,6.40073707]
[1733632778079,6.40073707,239.1,239.06,2.0897]
[1733632778281,6.40073707,239.1,239.02,6.40073707]
[1733632778481,1.9,239.11,239.06,2.0896]
[1733632778692,6.40073707,239.1,239.06,2.0896]
[1733632779186,6.40073707,239.08,239.06,2.0896]
[1733632779489,6.40073707,239.08,239.03,3.9899]
[1733632779680,1.9,239.11,239.03,1.9]
[1733632779887,6.40073707,239.07,239.03,1.9]
[1733632782481,6.40073707,239.07,239.04,2.0899]
[1733632783987,6.40073707,239.07,239.03,3.9899]
[1733632784383,6.40073707,239.07,239.03,1.9]
[1733632784587,6.40073707,239.07,239.04,2.0899]
[1733632787188,6.40073707,239.07,239.03,1.9]
[1733632787490,1.9,239.12,238.99,1.9]
[1733632787491,6.40073707,239.05,238.99,1.9]
[1733632787989,8.49063707,239.05,239.0,2.0902]
[1733632789287,8.49063707,239.05,239.01,2.0901]
[1733632791990,6.40073707,239.03,238.95,1.3874]
[1733632792294,6.40073707,239.05,238.97,6.40073707]
[1733632792591,8.49063707,239.05,239.0,2.0901]
[1733632794092,6.40073707,239.03,239.0,2.0901]
[1733632795185,6.40073707,239.03,238.99,2.0903]
[1733632795382,2.09,239.02,238.96,8.30073707]
[1733632795581,2.09,239.02,238.97,2.09194714]
[1733632795788,6.40073707,239.03,238.99,2.0903]
[1733632796694,8.49073707,239.03,238.99,2.0903]
[1733632801489,8.49073707,239.03,239.0,2.09190004]
[1733632801694,8.49073707,239.03,238.99,2.0903]
[1733632801989,8.49073707,239.03,239.0,2.09191304]
[1733632802191,8.49073707,239.03,238.99,2.0903]
[1733632802690,2.09,239.03,238.99,2.0903]
[1733632804198,2.09,239.03,239.0,2.09194028]
[1733632804396,2.09,239.03,238.99,2.0903]
[1733632804601,2.09,239.03,239.0,2.09193275]
[1733632804800,2.09,239.03,239.01,2.09190074]
[1733632804998,2.09,239.03,238.99,2.0903]
[1733632805301,2.09,239.03,239.0,2.0919009]
[1733632805501,2.09,239.03,239.01,2.0919009]
[1733632805694,2.09,239.03,238.99,2.0903]
[1733632805895,2.09,239.03,239.0,2.09191866]
[1733632806100,2.09,239.03,238.99,2.0903]
[1733632806295,2.09,239.03,239.0,2.09191866]
[1733632806493,2.09,239.03,238.99,2.0903]
[1733632806698,2.09,239.03,239.0,1.04594854]
[1733632807001,2.09,239.03,239.01,2.09189708]
[1733632807198,2.09,239.03,238.99,2.0903]
[1733632807389,2.09,239.03,239.0,2.09189922]
[1733632807590,2.09,239.03,238.96,6.40073707]
[1733632807591,6.40073707,239.02,238.96,6.40073707]
[1733632807898,8.49083707,239.02,238.98,2.0904]
[1733632808196,8.49083707,239.02,238.99,2.09192586]
[1733632808399,8.49083707,239.02,239.0,2.09192586]
[1733632808698,8.49083707,239.02,238.98,2.0904]
[1733632808902,8.49083707,239.02,238.99,2.09199796]
[1733632809100,8.49083707,239.02,239.0,2.09199796]
[1733632809395,8.49083707,239.02,238.98,2.0904]
[1733632809601,8.49083707,239.02,238.99,2.09199936]
[1733632809801,8.49083707,239.02,239.0,2.09199936]
[1733632810002,8.49083707,239.02,238.98,2.0904]
[1733632810296,2.0902,239.0,238.99,1.04600189]
[1733632810503,8.49093707,239.0,238.99,1.04600189]
[1733632810693,8.49093707,239.0,238.93,2.7057]
[1733632810694,6.40073707,239.0,238.93,2.7057]
[1733632810900,6.40073707,239.0,238.94,6.53929366]
[1733632811096,8.49093707,239.0,238.93,2.7057]
[1733632811400,8.49093707,239.0,238.94,2.09220948]
[1733632811604,8.49093707,239.0,238.95,2.09220948]
[1733632811804,8.49093707,239.0,238.93,2.7057]
[1733632811998,8.49093707,239.0,238.95,2.0907]
[1733632816006,6.40073707,239.0,238.95,2.0907]
[1733632816211,2.0904,238.99,238.95,2.0907]
[1733632817216,8.49093707,239.0,238.95,2.0907]
[1733632818705,8.49093707,239.0,238.96,2.0905]
[1733632819707,2.6456,239.15,238.98,2.0904]
[1733632819708,2.0901,239.02,238.98,2.0904]
[1733632820411,2.0901,239.02,238.99,2.0903]
[1733632821611,2.0902,239.01,238.97,2.0904]
[1733632822317,2.0903,239.0,238.97,2.0904]
[1733632823812,6.40073707,239.01,238.94,6.40073707]
[1733632824014,6.40073707,239.01,238.98,2.0904]
[1733632824214,6.40073707,239.01,238.93,2.7057]
[1733632824517,6.40073707,239.01,238.94,4.86249044]
[1733632824815,6.40073707,239.01,238.95,2.0922401]
[1733632825115,6.40073707,239.01,238.93,9.10643707]
[1733632825315,6.40073707,239.01,238.94,4.86283406]
[1733632825516,6.40073707,239.01,238.95,2.0922303]
[1733632825715,8.49093707,239.01,238.97,2.0905]
[1733632828321,2.0903,239.0,238.97,2.0905]
[1733632828619,2.0903,239.0,238.96,2.0906]
[1733632830320,6.40073707,239.01,238.94,1.88]
[1733632830520,6.40073707,239.01,238.94,3.9707]
[1733632831020,2.0903,238.99,238.94,3.9707]
[1733632831421,6.40073707,239.01,238.94,3.9707]
[1733632831819,2.0903,238.99,238.94,3.9707]
[1733632832915,2.0904,238.98,238.94,3.9707]
[1733632833220,2.0904,238.98,238.95,2.09233128]
[1733632833423,2.0904,238.98,238.94,3.9707]
[1733632834218,2.0904,238.98,238.95,2.09233278]
[1733632834518,6.40073707,239.01,238.94,3.9707]
[1733632834720,2.0903,238.99,238.95,1.04616504]
[1733632834922,2.0903,238.99,238.94,3.9707]
[1733632835222,2.0903,238.99,238.95,2.09233008]
[1733632835422,2.0903,238.99,238.94,3.9707]
[1733632835723,2.0903,238.99,238.95,2.09233138]
[1733632835922,2.0903,238.99,238.96,2.0923215]
[1733632836126,2.0903,238.99,238.95,2.0906]
[1733632836423,2.0903,238.99,238.96,2.09220184]
[1733632836618,2.0903,238.99,238.95,2.0906]
[1733632836826,2.0903,238.99,238.96,2.09220026]
[1733632837121,2.0903,238.99,238.95,2.0906]
[1733632837425,2.0903,238.99,238.96,2.09224222]
[1733632837618,2.0903,238.99,238.95,2.0906]
[1733632837819,2.0903,238.99,238.96,2.09223502]
[1733632838023,2.0904,238.98,238.94,1.88]
[1733632838225,2.0904,238.98,238.95,2.09226242]
[1733632838524,2.0904,238.98,238.96,2.09226242]
[1733632838719,6.40073707,239.01,238.94,1.88]
[1733632838918,6.40073707,239.01,238.95,2.09229126]
[1733632839119,6.40073707,239.01,238.94,1.88]
[1733632839425,6.40073707,239.01,238.95,2.09232332]
[1733632839615,2.0904,238.98,238.94,1.88]
[1733632839818,2.0904,238.98,238.95,2.09232508]
[1733632840015,2.0904,238.98,238.94,1.88]
[1733632840226,2.0904,238.98,238.95,2.09228844]
[1733632840418,2.0904,238.98,238.94,1.88]
[1733632840617,2.0904,238.98,238.95,2.09231006]
[1733632840823,2.0904,238.98,238.94,1.88]
[1733632841024,2.0904,238.98,238.95,2.09231282]
[1733632841217,2.0904,238.98,238.94,3.9707]
[1733632842720,6.40073707,238.99,238.9,1.2591]
[1733632843024,2.0905,238.97,238.93,2.0908]
[1733632843527,2.0906,238.96,238.92,2.0909]
[1733632843827,6.40073707,238.97,238.9,1.2591]
[1733632844527,8.49143707,238.95,238.9,3.3501]
[1733632845130,1.86,238.99,238.9,1.2591]
[1733632845332,8.26073707,238.99,238.92,6.40073707]
[1733632846427,2.0904,238.98,238.94,8.49143707]
[1733632846727,6.40073707,239.02,238.94,6.40073707]
[1733632846928,6.40073707,239.02,238.94,8.26073707]
[1733632847431,2.0902,239.01,238.95,2.09224584]
[1733632847627,2.0902,239.01,238.94,8.26073707]
[1733632847825,2.0902,239.01,238.95,2.0922581]
[1733632848029,2.0902,239.01,238.94,8.26073707]
[1733632848231,2.0902,239.01,238.95,2.09225782]
[1733632848534,2.0902,239.0,238.97,2.0905]
[1733632851631,6.40073707,239.02,238.98,2.0903]
[1733632851632,8.49083707,239.02,238.98,2.0903]
[1733632852228,2.0894,239.1,239.02,2.09]
[1733632852429,1.86,239.09,239.02,2.09]
[1733632852734,6.40073707,239.05,239.02,2.09]
[1733632853434,8.49073707,239.03,238.99,2.0903]
[1733632853631,6.40073707,239.01,238.87,0.26219195]
[1733632853828,6.40073707,238.94,238.88,4.86724883]
[1733632854037,2.0911,238.91,238.86,2.0914]
[1733632854335,2.0911,238.91,238.84,8.26073707]
[1733632854531,2.0911,238.91,238.85,3.81999013]
[1733632854736,6.40073707,238.9,238.86,2.09300936]
[1733632854933,2.0911,238.91,238.84,2.0916]
[1733632854934,2.0911,238.91,238.84,8.49233707]
[1733632855128,2.0909,238.92,238.85,5.4944267]
[1733632855329,2.0909,238.92,238.86,3.82002248]
[1733632855534,6.40073707,238.93,238.87,2.09302688]
[1733632855729,8.26073707,238.95,238.88,8.49362237]
[1733632855933,8.26073707,238.95,238.89,2.0928672]
[1733632856128,8.26073707,238.95,238.88,8.49193707]
[1733632856331,8.26073707,238.95,238.89,2.09286722]
[1733632856530,8.26073707,238.95,238.88,8.49193707]
[1733632856727,10.35143707,238.95,238.89,2.09273658]
[1733632856930,6.40073707,238.93,238.86,8.49213707]
[1733632857136,6.40073707,238.93,238.87,4.86464169]
[1733632857433,6.40073707,238.93,238.88,2.09280434]
[1733632857636,6.40073707,238.93,238.89,2.09281844]
[1733632857837,6.40073707,238.93,238.88,2.0913]
[1733632858041,6.40073707,238.93,238.89,1.04639409]
[1733632858240,6.40073707,238.93,238.88,2.0913]
[1733632858439,6.40073707,238.93,238.89,1.04639173]
[1733632858639,6.40073707,238.93,238.88,2.0913]
[1733632858940,6.40073707,238.93,238.89,2.09274553]
[1733632859139,6.40073707,238.93,238.88,2.0913]
[1733632859336,6.40073707,238.93,238.89,2.09272394]
[1733632859531,6.40073707,238.93,238.87,2.0914]
[1733632859741,6.40073707,238.93,238.88,2.09280034]
[1733632860039,6.40073707,238.93,238.87,2.0914]
[1733632860241,6.40073707,238.93,238.88,2.09280758]
[1733632860440,6.40073707,238.91,238.85,1.86]
[1733632860644,6.40073707,238.91,238.86,4.86380572]
[1733632860836,6.40073707,238.91,238.87,1.04645728]
[1733632861140,6.40073707,238.91,238.85,1.86]
[1733632861335,6.40073707,238.91,238.86,4.8637473]
[1733632861542,6.40073707,238.91,238.84,6.40073707]
[1733632861543,6.40073707,238.91,238.84,8.26073707]
[1733632861741,6.40073707,238.91,238.85,4.86329123]
[1733632861930,6.40073707,238.91,238.86,2.09294446]
[1733632862132,6.40073707,238.91,238.84,8.26073707]
[1733632862333,6.40073707,238.91,238.85,4.86275287]
[1733632862641,8.49183707,238.91,238.86,2.09294446]
[1733632862843,8.49183707,238.91,238.84,8.26073707]
[1733632863041,8.49183707,238.91,238.85,4.86278153]
[1733632863340,8.49183707,238.91,238.86,2.09295668]
[1733632863540,8.49183707,238.91,238.84,8.26073707]
[1733632863740,8.49183707,238.91,238.85,4.8622829]
[1733632863940,8.49183707,238.91,238.86,2.09295308]
[1733632864142,8.49183707,238.91,238.84,8.26073707]
[1733632864342,8.49183707,238.91,238.85,2.09294586]
[1733632864639,8.49183707,238.91,238.84,8.26073707]
[1733632864844,2.0909,238.93,238.86,6.40073707]
[1733632865046,6.40073707,238.93,238.84,1.86]
[1733632865345,6.40073707,238.93,238.86,6.40073707]
[1733632865841,8.49163707,238.93,238.86,6.40073707]
[1733632866638,8.49163707,238.93,238.84,8.26073707]
[1733632866843,6.40073707,238.91,238.85,2.0929519]
[1733632867043,6.40073707,238.91,238.84,8.26073707]
[1733632867245,6.40073707,238.91,238.85,2.09294478]
[1733632867448,6.40073707,238.91,238.84,8.26073707]
[1733632867647,6.40073707,238.91,238.85,2.09293864]
[1733632867848,6.40073707,238.91,238.84,8.26073707]
[1733632868047,6.40073707,238.91,238.85,2.09293864]
[1733632868249,6.40073707,238.91,238.84,8.26073707]
[1733632868444,6.40073707,238.91,238.85,2.09294586]
[1733632868648,6.40073707,238.91,238.84,8.26073707]
[1733632868844,6.40073707,238.91,238.85,2.09294586]
[1733632869044,6.40073707,238.91,238.84,1.86]
[1733632869350,2.0901,239.02,238.89,6.40073707]
[1733632869546,6.40073707,238.99,238.91,6.40073707]
[1733632869742,6.40073707,238.99,238.92,2.0929567]
[1733632869946,6.40073707,238.99,238.91,6.40073707]
[1733632870349,6.40073707,238.97,238.91,6.40073707]
[1733632871651,6.40073707,238.97,238.92,2.0925115]
[1733632871855,6.40073707,238.97,238.91,6.40073707]
[1733632872046,2.0903,239.0,238.92,2.09251992]
[1733632872252,1.86,239.01,238.91,6.40073707]
[1733632872549,1.86,239.01,238.93,6.40073707]
[1733632872550,8.26073707,239.01,238.93,6.40073707]
[1733632873045,6.40073707,239.01,238.93,6.40073707]
[1733632873959,2.0901,239.02,238.94,2.90616875]
[1733632874255,2.0901,239.02,238.94,1.86]
[1733632874454,8.49083707,239.02,238.95,6.40073707]
[1733632874645,2.09,239.03,238.98,2.0903]
[1733632874848,6.40073707,239.01,238.98,2.0903]
[1733632875048,6.40073707,238.99,238.88,0.26165852]
[1733632875249,6.40073707,238.97,238.92,2.0909]
[1733632875452,6.40073707,238.97,238.87,2.6876]
[1733632875656,6.40073707,238.95,238.88,10.06815641]
[1733632875847,6.40073707,238.95,238.89,6.95120861]
[1733632876047,6.40073707,238.95,238.89,2.0912]
[1733632877551,8.49143707,238.95,238.89,2.0912]
[1733632878152,2.0907,238.95,238.89,8.49193707]
[1733632878358,1.86,238.99,238.91,6.40073707]
[1733632878552,8.26073707,238.99,238.91,6.40073707]
[1733632879651,10.35113707,238.99,238.93,2.0908]
[1733632880062,8.26073707,238.99,238.93,2.0908]
[1733632880256,6.40073707,238.97,238.92,2.0909]
[1733632880457,6.40073707,238.97,238.89,6.40073707]
[1733632880955,6.40073707,238.97,238.91,2.091]
[1733632880956,8.49133707,238.97,238.91,2.091]
[1733632881255,6.40073707,238.97,238.88,1.86]
[1733632881462,2.0906,238.96,238.9,2.0911]
[1733632883462,2.0907,238.95,238.9,2.0911]
[1733632883763,8.26073707,238.99,238.93,2.0908]
[1733632884059,2.0905,238.98,238.91,6.40073707]
[1733632884255,6.40073707,238.93,238.87,2.6876]
[1733632884456,1.86,238.99,238.88,9.53838479]
[1733632884457,6.40073707,238.95,238.88,9.53838479]
[1733632884653,6.40073707,238.95,238.89,1.04634149]
[1733632884858,6.40073707,238.95,238.88,8.49203707]
[1733632885260,2.0908,238.94,238.88,8.49203707]
[1733632885462,6.40073707,238.95,238.89,3.13754313]
[1733632885662,6.40073707,238.95,238.89,2.0912]
[1733632886367,2.0908,238.94,238.88,6.40073707]